[Event "29. Klatovy A 2023"]
[Site "Klatovy"]
[Date "2023.07.09"]
[Round "9.15"]
[White "Palek, Miroslav"]
[Black "Vana, Jan 2010"]
[Result "0-1"]
[ECO "B31"]
[WhiteElo "2091"]
[BlackElo "1890"]
[PlyCount "85"]
[EventDate "2023.07.01"]
[EventType "swiss"]
[EventRounds "9"]
[EventCountry "CZE"]
[TimeControl "120+30"]

1. e4 {[%emt 0:00:08]} c5 {[%emt 0:00:03]} 2. Nf3 {[%emt 0:02:37]} Nc6 {[%emt 0:00:05]} 3. Bb5 {[%emt 0:00:34]} g6 {[%emt 0:00:06]} 4. O-O {[%emt 0:01:01]} Bg7 {[%emt 0:00:07]} 5. c3 {[%emt 0:00:36]} e5 {[%emt 0:00:08]} 6. d3 {[%emt 0:03:37]} Nge7 {[%emt 0:01:40]} 7. Be3 {[%emt 0:00:30]} d6 {[%emt 0:02:18]} 8. d4 {[%emt 0:06:56]} exd4 {[%emt 0:09:18]} 9. cxd4 {[%emt 0:00:47]} Qb6 {[%emt 0:01:14]} 10. Na3 {[%emt 0:09:02]} O-O {[%emt 0:05:00]} 11. dxc5 {[%emt 0:04:19]} dxc5 {[%emt 0:02:41]} 12. Qc1 {[%emt 0:00:45]} Nd4 {[%emt 0:05:10]} 13. Nxd4 {[%emt 0:09:39]} cxd4 {[%emt 0:02:24]} 14. Bd2 {[%emt 0:09:33]} Be6 {[%emt 0:03:17]} 15. Bb4 {[%emt 0:03:58]} Rfc8 {[%emt 0:01:21]} 16. Qd2 {[%emt 0:02:50]} Nc6 {[%emt 0:01:50]} 17. Bxc6 {[%emt 0:00:32]} bxc6 {[%emt 0:04:04]} 18. Ba5 {[%emt 0:02:35]} Qa6 {[%emt 0:08:51]} 19. f4 {[%emt 0:04:47]} f5 {[%emt 0:04:42]} 20. e5 {[%emt 0:02:52]} Bf8 {[%emt 0:14:31]} 21. Nc2 {[%emt 0:04:32]} c5 {[%emt 0:02:15]} 22. b3 {[%emt 0:01:37]} Rab8 {[%emt 0:02:29]} 23. Qe1 {[%emt 0:01:45]} Bd5 {[%emt 0:11:52]} 24. Kh1 {[%emt 0:09:48]} Rb5 {[%emt 0:07:44]} 25. Bd2 {[%emt 0:00:48]} Be4 {[%emt 0:00:26]} 26. Qc1 {[%emt 0:05:05]} Qb7 {[%emt 0:13:16]} 27. Rf2 {[%emt 0:03:21]} c4 {[%emt 0:03:57]} 28. Nxd4 {[%emt 0:00:54]} cxb3 {[%emt 0:00:18]} 29. Qb2 {[%emt 0:02:27]} Rc2 {[%emt 0:07:24]} 30. Nxc2 {[%emt 0:03:09]} bxc2 {[%emt 0:00:28]} 31. Qc3 {[%emt 0:08:34]} Rb1+ {[%emt 0:04:37]} 32. Bc1 {[%emt 0:03:12]} Ba3 {[%emt 0:01:00]} 33. Rxc2 {[%emt 0:04:18]} Qb5 {[%emt 0:06:59]} 34. Rf2 {[%emt 0:18:06]} Qa4 {[%emt 0:00:47]} 35. Rf1 {[%emt 0:00:28]} Rxa1 {[%emt 0:00:13]} 36. Qxa1 {[%emt 0:00:07]} Qc2 {[%emt 0:00:05]} 37. Rg1 {[%emt 0:00:16]} Bxc1 {[%emt 0:00:06]} 38. Qd4 {[%emt 0:00:31]} Ba3 {[%emt 0:06:06]} 39. Qd8+ {[%emt 0:01:03]} Bf8 {[%emt 0:00:05]} 40. e6 {[%emt 0:00:32]} Qc5 {[%emt 0:00:04]} 41. Rd1 {[%emt 0:00:52]} Bc6 {[%emt 0:01:27]} 42. Qd3 {[%emt 0:01:22]} Qf2 {[%emt 0:00:30]} 43. Qf1 {[%emt 0:00:00]} 0-1

[Event "29. Klatovy A 2023"]
[Site "Klatovy"]
[Date "2023.07.09"]
[Round "9.16"]
[White "Kroulik, Vaclav"]
[Black "Pycha, Patrik"]
[Result "0-1"]
[ECO "C08"]
[WhiteElo "1750"]
[BlackElo "2058"]
[PlyCount "64"]
[EventDate "2023.07.01"]
[EventType "swiss"]
[EventRounds "9"]
[EventCountry "CZE"]
[TimeControl "120+30"]

1. e4 {[%emt 0:00:02]} e6 {[%emt 0:00:11]} 2. d4 {[%emt 0:00:07]} d5 {[%emt 0:00:10]} 3. Nd2 {[%emt 0:00:05]} c5 {[%emt 0:00:05]} 4. exd5 {[%emt 0:00:24]} exd5 {[%emt 0:00:12]} 5. Ngf3 {[%emt 0:00:56]} a6 {[%emt 0:00:59]} 6. Be2 {[%emt 0:00:29]} Nf6 {[%emt 0:00:33]} 7. O-O {[%emt 0:00:23]} Be7 {[%emt 0:00:33]} 8. dxc5 {[%emt 0:00:29]} Bxc5 {[%emt 0:05:38]} 9. Nb3 {[%emt 0:00:31]} Bb6 {[%emt 0:00:49]} 10. c3 {[%emt 0:01:50]} O-O {[%emt 0:00:46]} 11. h3 {[%emt 0:02:27]} Qd6 {[%emt 0:04:11]} 12. Nbd4 {[%emt 0:01:14]} Nc6 {[%emt 0:00:58]} 13. Be3 {[%emt 0:03:16]} Bc7 {[%emt 0:00:52]} 14. Nxc6 {[%emt 0:15:07]} bxc6 {[%emt 0:01:47]} 15. Rc1 {[%emt 0:08:05]} Bf5 {[%emt 0:09:42]} 16. c4 {[%emt 0:01:56]} Rfe8 {[%emt 0:01:37]} 17. cxd5 {[%emt 0:21:15]} Nxd5 {[%emt 0:02:30]} 18. Qa4 {[%emt 0:02:11]} Nxe3 {[%emt 0:08:59]} 19. fxe3 {[%emt 0:01:05]} Be4 {[%emt 0:08:41]} 20. Rcd1 {[%emt 0:14:25]} Qh6 {[%emt 0:07:22]} 21. Bc4 {[%emt 0:07:36]} Qxe3+ {[%emt 0:08:06]} 22. Kh1 {[%emt 0:00:09]} Re7 {[%emt 0:08:27]} 23. Rde1 {[%emt 0:02:14]} Qf4 {[%emt 0:00:57]} 24. Bxf7+ {[%emt 0:12:37]} Kh8 {[%emt 0:00:10]} 25. Bb3 {[%emt 0:04:36]} Rae8 {[%emt 0:02:39]} 26. Rd1 {[%emt 0:02:45]} Qg3 {[%emt 0:01:42]} 27. Rd2 {[%emt 0:05:19]} Bxf3 {[%emt 0:00:54]} 28. gxf3 {[%emt 0:00:14]} Qxh3+ {[%emt 0:00:07]} 29. Kg1 {[%emt 0:00:14]} Bb6+ {[%emt 0:00:04]} 30. Rdf2 {[%emt 0:02:13]} Qg3+ {[%emt 0:00:21]} 31. Kh1 {[%emt 0:00:06]} Bxf2 {[%emt 0:00:16]} 32. Qg4 {[%emt 0:01:24]} Qxg4 {[%emt 0:00:07]} 0-1

[Event "29. Klatovy A 2023"]
[Site "Klatovy"]
[Date "2023.07.09"]
[Round "9.17"]
[White "Folkova, Martina"]
[Black "Zhang, Brian"]
[Result "1-0"]
[ECO "B92"]
[WhiteElo "2049"]
[BlackElo "1821"]
[PlyCount "95"]
[EventDate "2023.07.01"]
[EventType "swiss"]
[EventRounds "9"]
[EventCountry "CZE"]
[TimeControl "120+30"]

1. e4 {[%emt 0:09:29]} c5 {[%emt 0:00:49]} 2. Nf3 {[%emt 0:00:07]} d6 {[%emt 0:00:07]} 3. d4 {[%emt 0:00:04]} cxd4 {[%emt 0:00:05]} 4. Nxd4 {[%emt 0:00:04]} Nf6 {[%emt 0:00:11]} 5. Nc3 {[%emt 0:00:04]} a6 {[%emt 0:00:14]} 6. Be2 {[%emt 0:00:27]} e5 {[%emt 0:01:35]} 7. Nb3 {[%emt 0:00:13]} Be7 {[%emt 0:03:05]} 8. Be3 {[%emt 0:01:21]} Be6 {[%emt 0:14:21]} 9. O-O {[%emt 0:03:34]} O-O {[%emt 0:04:37]} 10. Qd3 {[%emt 0:06:06]} Nbd7 {[%emt 0:23:13]} 11. Nd5 {[%emt 0:06:24]} Bxd5 {[%emt 0:24:45]} 12. exd5 {[%emt 0:00:48]} Ne8 {[%emt 0:03:10]} 13. c4 {[%emt 0:03:02]} Nc5 {[%emt 0:09:12]} 14. Nxc5 {[%emt 0:02:43]} dxc5 {[%emt 0:00:12]} 15. f4 {[%emt 0:01:22]} exf4 {[%emt 0:10:10]} 16. Rxf4 {[%emt 0:03:02]} Bg5 {[%emt 0:10:28]} 17. Rf3 {[%emt 0:00:28]} Bxe3+ {[%emt 0:03:23]} 18. Qxe3 {[%emt 0:00:09]} Qd6 {[%emt 0:00:59]} 19. Raf1 {[%emt 0:04:01]} Nc7 {[%emt 0:05:54]} 20. Bd3 {[%emt 0:01:39]} Rae8 {[%emt 0:04:39]} 21. Qf2 {[%emt 0:01:58]} Re7 {[%emt 0:05:14]} 22. Rh3 {[%emt 0:18:45]} g6 {[%emt 0:03:48]} 23. Qh4 {[%emt 0:02:47]} f6 {[%emt 0:00:53]} 24. Rhf3 {[%emt 0:06:09]} Ne8 {[%emt 0:00:35]} 25. Qh6 {[%emt 0:03:28]} Qe5 {[%emt 0:00:49]} 26. h4 {[%emt 0:00:53]} Ng7 {[%emt 0:00:28]} 27. b3 {[%emt 0:04:08]} Qd4+ {[%emt 0:00:27]} 28. Kh1 {[%emt 0:01:28]} Nh5 {[%emt 0:00:32]} 29. g3 {[%emt 0:01:13]} Qe5 {[%emt 0:00:29]} 30. Kg2 {[%emt 0:00:46]} Ng7 {[%emt 0:00:30]} 31. Qd2 {[%emt 0:01:32]} Qd4 {[%emt 0:00:34]} 32. Rf4 {[%emt 0:10:52]} Qe5 {[%emt 0:00:28]} 33. Qf2 {[%emt 0:01:35]} Nh5 {[%emt 0:00:30]} 34. Rf3 {[%emt 0:01:45]} Qd4 {[%emt 0:00:29]} 35. Qxd4 {[%emt 0:01:04]} cxd4 {[%emt 0:00:05]} 36. g4 {[%emt 0:00:18]} Ng7 {[%emt 0:00:17]} 37. Rxf6 {[%emt 0:01:17]} Rfe8 {[%emt 0:01:09]} 38. R6f4 {[%emt 0:01:30]} Re3 {[%emt 0:00:29]} 39. Rxd4 {[%emt 0:01:39]} Rd8 {[%emt 0:00:31]} 40. Rff4 {[%emt 0:03:50]} Re1 {[%emt 0:00:28]} 41. Rde4 {[%emt 0:02:24]} Ra1 {[%emt 0:00:23]} 42. Re2 {[%emt 0:01:38]} Ne8 {[%emt 0:00:38]} 43. c5 {[%emt 0:01:57]} Nc7 {[%emt 0:00:27]} 44. d6 {[%emt 0:00:36]} Ne8 {[%emt 0:00:32]} 45. Bc4+ {[%emt 0:00:20]} Kg7 {[%emt 0:00:31]} 46. Re7+ {[%emt 0:00:41]} Kh6 {[%emt 0:00:28]} 47. g5+ {[%emt 0:00:26]} Kh5 {[%emt 0:00:07]} 48. Rxh7# {[%emt 0:00:29]} 1-0

[Event "29. Klatovy A 2023"]
[Site "Klatovy"]
[Date "2023.07.09"]
[Round "9.18"]
[White "Martirosyan, David"]
[Black "Mik, Tomas"]
[Result "0-1"]
[ECO "A39"]
[WhiteElo "1908"]
[BlackElo "1940"]
[PlyCount "116"]
[EventDate "2023.07.01"]
[EventType "swiss"]
[EventRounds "9"]
[EventCountry "CZE"]
[TimeControl "120+30"]

1. Nf3 {[%emt 0:00:21]} Nf6 {[%emt 0:00:13]} 2. c4 {[%emt 0:00:16]} g6 {[%emt 0:01:08]} 3. d4 {[%emt 0:00:13]} c5 {[%emt 0:00:34]} 4. Nc3 {[%emt 0:00:00]} Bg7 {[%emt 0:01:25]} 5. g3 {[%emt 0:00:00]} O-O {[%emt 0:00:00]} 6. Bg2 {[%emt 0:00:00]} cxd4 {[%emt 0:00:00]} 7. Nxd4 {[%emt 0:00:00]} Nc6 {[%emt 0:05:25]} 8. O-O {[%emt 0:09:53]} a6 9. c5 {[%emt 0:00:00]} Qc7 {[%emt 0:03:49]} 10. Qa4 {[%emt 0:10:11]} Rd8 {[%emt 0:05:01]} 11. e3 {[%emt 0:00:00]} Rb8 {[%emt 0:07:55]} 12. Rd1 {[%emt 0:04:04]} e5 {[%emt 0:09:54]} 13. Nb3 {[%emt 0:09:53]} d6 {[%emt 0:03:06]} 14. h3 {[%emt 0:22:50]} Be6 {[%emt 0:03:53]} 15. cxd6 {[%emt 0:04:05]} Rxd6 {[%emt 0:00:57]} 16. Nc5 {[%emt 0:00:16]} Rxd1+ {[%emt 0:11:39]} 17. Qxd1 {[%emt 0:00:28]} Rd8 {[%emt 0:02:25]} 18. Qa4 {[%emt 0:00:52]} Bc8 {[%emt 0:08:08]} 19. b4 {[%emt 0:04:52]} b5 {[%emt 0:05:29]} 20. Qa3 {[%emt 0:00:00]} Qb6 {[%emt 0:00:00]} 21. Bb2 {[%emt 0:00:00]} Bf8 {[%emt 0:00:00]} 22. Rc1 {[%emt 0:00:00]} Nxb4 {[%emt 0:49:12]} 23. Qxb4 {[%emt 0:00:19]} Bxc5 {[%emt 0:00:37]} 24. Qh4 {[%emt 0:00:37]} Rd2 {[%emt 0:03:21]} 25. Ba1 {[%emt 0:03:04]} Bd7 {[%emt 0:08:12]} 26. Qg5 {[%emt 0:07:01]} Bf5 {[%emt 0:07:03]} 27. g4 {[%emt 0:02:25]} h6 {[%emt 0:02:20]} 28. Qxh6 {[%emt 0:03:35]} Bxg4 {[%emt 0:00:37]} 29. Ne4 {[%emt 0:02:46]} Bf8 {[%emt 0:04:22]} 30. Qh4 {[%emt 0:02:20]} Nxe4 {[%emt 0:01:19]} 31. Bxe4 {[%emt 0:00:18]} Be6 {[%emt 0:01:05]} 32. Bxe5 {[%emt 0:01:02]} Bg7 {[%emt 0:00:10]} 33. Rc6 {[%emt 0:05:35]} Qa7 {[%emt 0:03:04]} 34. Rc7 {[%emt 0:01:05]} Rd1+ {[%emt 0:01:59]} 35. Kg2 {[%emt 0:01:24]} Qb6 {[%emt 0:01:20]} 36. Rc6 {[%emt 0:05:29]} Qa7 {[%emt 0:00:39]} 37. Bxg7 {[%emt 0:00:58]} Kxg7 {[%emt 0:00:24]} 38. Qf4 {[%emt 0:02:53]} Qd7 {[%emt 0:01:28]} 39. Qe5+ {[%emt 0:00:54]} Kh7 {[%emt 0:00:53]} 40. Qh5+ {[%emt 0:01:54]} Kg7 {[%emt 0:01:42]} 41. Qe5+ {[%emt 0:01:23]} Kh7 {[%emt 0:00:25]} 42. Rc7 {[%emt 0:01:33]} Qd6 {[%emt 0:01:29]} 43. Qh5+ {[%emt 0:00:26]} Kg8 {[%emt 0:00:13]} 44. Qf3 {[%emt 0:00:53]} Qxc7 {[%emt 0:00:54]} 45. Qxd1 {[%emt 0:00:09]} Bxa2 {[%emt 0:00:32]} 46. Qa1 {[%emt 0:00:45]} Qc4 {[%emt 0:00:42]} 47. Qe5 {[%emt 0:00:52]} Qe6 {[%emt 0:00:19]} 48. Qb8+ {[%emt 0:01:05]} Kg7 {[%emt 0:00:09]} 49. Qa8 {[%emt 0:00:12]} Bc4 {[%emt 0:00:19]} 50. Bb7 {[%emt 0:00:48]} b4 {[%emt 0:00:12]} 51. Qa7 {[%emt 0:00:12]} Bd5+ {[%emt 0:00:15]} 52. Bxd5 {[%emt 0:01:12]} Qxd5+ {[%emt 0:00:05]} 53. f3 {[%emt 0:00:12]} a5 {[%emt 0:00:42]} 54. e4 {[%emt 0:00:30]} Qd2+ {[%emt 0:00:22]} 55. Kg3 {[%emt 0:00:09]} b3 {[%emt 0:00:20]} 56. Qe7 {[%emt 0:00:23]} Qd4 {[%emt 0:01:35]} 57. e5 {[%emt 0:00:32]} Qb6 {[%emt 0:00:30]} 58. Qd6 {[%emt 0:00:28]} Qxd6 {[%emt 0:00:13]} 0-1